bitfinex/quotes_SOLUSD_20220113
["timestamp","ask_amount","ask_price","bid_price","bid_amount"]
[1642088157515,29.57046795,152.75,152.65,2.619]
[1642088157714,29.57046795,152.75,152.64,0.26]
[1642088157914,2.619,152.74,152.59,9.7376]
[1642088158117,2.619,152.74,152.56,2.62]
[1642088158314,8.619,152.74,152.56,2.62]
[1642088158515,8.619,152.74,152.57,29.89819901]
[1642088158715,8.619,152.74,152.58,2.62]
[1642088159015,26.19046795,152.75,152.64,16.3688]
[1642088159215,26.19046795,152.75,152.6,2.619]
[1642088159415,26.19046795,152.75,152.59,7.71]
[1642088159416,32.19046795,152.75,152.59,10.329]
[1642088160026,26.19046795,152.75,152.6,22.37917024]
[1642088160219,23.57046795,152.75,152.6,31.52890476]
[1642088160422,23.57046795,152.75,152.6,30.08917024]
[1642088161017,33.39256795,152.75,152.63,4.912]
[1642088161218,33.39256795,152.75,152.59,2.619]
[1642088161219,10.329,152.74,152.59,2.619]
[1642088161625,16.329,152.74,152.59,2.619]
[1642088162023,16.579,152.74,152.59,2.619]
[1642088162524,26.155,152.74,152.58,19.07379785]
[1642088162922,16.329,152.74,152.58,19.32379785]
[1642088163529,16.329,152.74,152.63,16.3695]
[1642088163724,13.71,152.74,152.59,2.619]
[1642088163925,23.91400853,152.72,152.58,19.07379785]
[1642088164126,2.62,152.71,152.58,19.07379785]
[1642088164324,23.91400853,152.72,152.59,2.62]
[1642088164526,31.62400853,152.72,152.59,2.62]
[1642088164726,2.62,152.71,152.59,2.62]
[1642088164926,7.71,152.7,152.59,2.62]
[1642088165328,2.62,152.71,152.59,2.62]
[1642088165526,2.62,152.74,152.66,4.9109]
[1642088165730,7.71,152.75,152.66,4.9109]
[1642088165931,6.0,152.74,152.66,5.1709]
[1642088166127,13.71,152.75,152.66,0.26]
[1642088166331,13.71,152.75,152.6,0.07]
[1642088166531,19.27409294,152.74,152.6,20.85736586]
[1642088166732,2.62,152.73,152.6,20.85736586]
[1642088166931,19.27409294,152.74,152.6,21.36736586]
[1642088167228,21.89409294,152.74,152.6,21.36736586]
[1642088167429,22.14409294,152.74,152.6,21.36736586]
[1642088167631,21.89409294,152.74,152.6,21.36736586]
[1642088167830,7.71,152.73,152.59,2.62]
[1642088168032,2.62,152.72,152.56,2.62]
[1642088168230,10.33,152.72,152.55,2.62]
[1642088168628,10.33,152.72,152.55,8.62]
[1642088168829,17.46440054,152.71,152.56,18.49047011]
[1642088169030,17.71440054,152.71,152.62,4.9122]
[1642088169228,2.62,152.7,152.62,4.9122]
[1642088169429,2.62,152.7,152.59,17.9723927]
[1642088169628,20.08440054,152.71,152.59,17.9723927]
[1642088170029,20.08440054,152.71,152.6,16.372]
[1642088170232,17.46440054,152.71,152.56,2.62]
[1642088170428,20.08440054,152.71,152.56,66.26]
[1642088170629,20.08440054,152.71,152.56,72.26]
[1642088170829,20.08440054,152.71,152.57,0.07]
[1642088171030,17.46440054,152.71,152.62,4.9122]
[1642088171329,2.62,152.7,152.56,69.64]
[1642088171531,2.62,152.7,152.57,14.2980428]
[1642088171729,2.62,152.7,152.57,77.9380428]
[1642088171929,8.62,152.7,152.57,77.9380428]
[1642088172129,18.4452,152.7,152.57,77.9380428]
[1642088172332,18.6952,152.7,152.57,77.9380428]
[1642088172532,3.72394019,152.69,152.57,77.9380428]
[1642088172738,17.52277183,152.68,152.57,77.9380428]
[1642088172936,20.14277183,152.68,152.57,77.9380428]
[1642088173135,26.39277183,152.68,152.59,4.913]
[1642088173336,26.45825017,152.68,152.59,4.913]
[1642088173536,26.45825017,152.68,152.59,0.26]
[1642088173735,20.45825017,152.68,152.59,0.26]
[1642088173934,20.45825017,152.68,152.57,78.1980428]
[1642088174634,20.70825017,152.68,152.57,78.1980428]
[1642088175238,20.45825017,152.68,152.6,4.9127]
[1642088175635,20.45825017,152.68,152.6,5.1727]
[1642088175837,51.0,152.67,152.57,63.64]
[1642088176037,53.87,152.67,152.55,2.62]
[1642088176636,59.87,152.67,152.57,4.9139]
[1642088176836,59.87,152.67,152.54,26.4109]
[1642088176837,7.71,152.66,152.54,10.0323]
[1642088177037,2.621,152.65,152.5,9.6498]
[1642088177238,7.71,152.64,152.5,9.6498]
[1642088177440,2.621,152.63,152.5,9.6498]
[1642088177638,7.71,152.62,152.45,0.07]
[1642088177842,22.82688372,152.61,152.45,0.07]
[1642088178040,17.5425,152.6,152.51,4.9159]
[1642088178240,7.71,152.6,152.5,63.64]
[1642088178942,20.20488372,152.61,152.5,63.89]
[1642088179141,20.20488372,152.61,152.54,4.9147]
[1642088180143,37.99588372,152.61,152.49,4.9163]
[1642088180346,2.622,152.6,152.46,16.3874]
[1642088180543,7.71,152.59,152.44,15.8465]
[1642088180745,2.622,152.58,152.44,15.8465]
[1642088180944,18.50667005,152.57,152.45,84.8310817]
[1642088181143,18.50667005,152.57,152.45,87.4530817]
[1642088181349,18.75667005,152.57,152.49,4.9162]
[1642088181744,18.50667005,152.57,152.49,0.26]
[1642088181945,18.50667005,152.57,152.48,0.26]
[1642088182345,18.50667005,152.57,152.45,83.1593]
[1642088182546,18.50667005,152.57,152.45,82.9093]
[1642088182948,18.50667005,152.57,152.46,20.07605421]
[1642088183146,7.71,152.59,152.46,20.07605421]
[1642088183348,7.71,152.59,152.47,2.622]
[1642088183575,7.71,152.59,152.47,2.882]
[1642088183974,7.71,152.59,152.47,3.132]
[1642088184279,21.45283417,152.58,152.47,2.622]
[1642088184478,21.45283417,152.58,152.45,2.622]
[1642088184684,21.45283417,152.58,152.45,66.262]
[1642088184875,21.45283417,152.58,152.45,67.70570666]
[1642088185075,21.45283417,152.58,152.45,66.262]
[1642088185275,7.71,152.59,152.45,66.262]
[1642088185479,7.71,152.59,152.54,4.9151]
[1642088185876,2.93547834,152.62,152.54,0.26]
[1642088186375,2.93547834,152.66,152.56,13.54255429]
[1642088186578,2.93547834,152.66,152.57,2.621]
[1642088186776,2.93547834,152.66,152.57,2.881]
[1642088187378,5.29139592,152.69,152.57,10.032]
[1642088187578,45.25290918,152.7,152.65,4.9116]
[1642088187776,2.93547834,152.71,152.62,21.18235606]
[1642088187980,2.93547834,152.71,152.62,21.69235606]
[1642088188376,2.93547834,152.71,152.62,27.69235606]
[1642088188778,20.43642524,152.71,152.62,27.69235606]
[1642088188978,20.43642524,152.71,152.62,27.76235606]
[1642088189178,17.5009469,152.71,152.68,4.9107]
[1642088189477,6.06439994,152.7,152.68,5.1707]
[1642088189676,2.93547834,152.73,152.68,5.1707]
[1642088189876,2.93547834,152.73,152.68,4.9107]
[1642088190278,26.38868444,152.75,152.67,16.3665]
[1642088190480,23.76968444,152.75,152.67,80.2665]
[1642088191082,2.93547834,152.75,152.67,80.2665]
[1642088191283,2.93547834,152.75,152.69,16.3634]
[1642088191482,2.93547834,152.76,152.73,4.9093]
[1642088192282,2.93547834,152.76,152.69,80.2634]
[1642088192482,0.00039999,152.72,152.7,16.3625]
[1642088192684,28.88016817,152.78,152.71,63.64]
[1642088192885,28.88016817,152.78,152.7,16.6225]
[1642088193285,25.94468983,152.78,152.7,16.6225]
[1642088193884,25.94468983,152.78,152.74,4.909]
[1642088194485,13.26347834,152.8,152.74,4.909]
[1642088194688,10.64547834,152.8,152.71,63.64]
[1642088194984,16.89547834,152.8,152.75,4.9086]
[1642088195184,16.89547834,152.8,152.71,0.26]
[1642088195385,21.05509975,152.79,152.71,0.26]
[1642088195585,29.67309975,152.79,152.71,0.26]
[1642088195787,29.67309975,152.79,152.71,80.0011]
[1642088195788,8.618,152.79,152.71,80.0011]
[1642088195985,2.618,152.79,152.77,4.9079]
[1642088196186,2.93547834,152.81,152.71,70.15]
[1642088196385,2.93547834,152.81,152.72,2.618]
[1642088196585,2.93547834,152.81,152.72,9.128]
[1642088196990,2.93547834,152.81,152.76,16.3557]
[1642088197387,1.1682263,152.84,152.76,16.6157]
[1642088197585,1.1682263,152.84,152.79,4.9072]
[1642088197786,3.7852263,152.84,152.79,4.9072]
[1642088198185,3.7852263,152.84,152.76,0.26]
[1642088198388,3.2852263,152.84,152.74,16.3583]
[1642088198585,20.75339989,152.83,152.76,4.9079]
[1642088198786,23.37039989,152.83,152.74,16.3583]
[1642088198987,20.75339989,152.83,152.74,13.10959059]
[1642088199388,0.6682263,152.84,152.77,16.3552]
[1642088199789,0.6682263,152.84,152.8,4.9066]
[1642088200589,0.6682263,152.84,152.77,36.77630912]
[1642088200789,0.6682263,152.84,152.81,4.9065]
[1642088200993,0.6682263,152.84,152.81,5.1565]
[1642088201191,0.6682263,152.84,152.81,69.0565]
[1642088201592,8.22687426,152.88,152.81,69.0565]
[1642088201793,8.22687426,152.88,152.86,4.9049]
[1642088201997,2.93547834,152.91,152.86,4.9049]
[1642088202792,2.93547834,152.91,152.85,18.11585081]
[1642088202991,2.93547834,152.91,152.88,4.9043]
[1642088203599,7.71,152.94,152.84,16.3469]
[1642088203999,17.09318055,152.93,152.83,3.9246]
[1642088204200,10.326,152.92,152.78,2.616]
[1642088204595,16.576,152.92,152.78,2.616]
[1642088205096,26.1377,152.92,152.84,3.9245]
[1642088205295,16.326,152.92,152.83,13.0791]
[1642088205495,13.71,152.92,152.84,19.30731521]
[1642088205695,13.71,152.92,152.83,13.0791]
[1642088205896,13.71,152.92,152.78,2.616]
[1642088206099,26.1373,152.92,152.84,3.9243]
[1642088206396,26.1373,152.92,152.78,2.616]
[1642088206597,26.1373,152.92,152.8,21.64518695]
[1642088207000,26.3873,152.92,152.8,21.64518695]
[1642088207597,26.3873,152.92,152.84,3.9245]
[1642088207797,16.326,152.92,152.8,21.64518695]
[1642088207996,16.326,152.92,152.8,21.90518695]
[1642088208406,16.326,152.92,152.8,22.15518695]
[1642088208600,16.326,152.92,152.8,21.90518695]
[1642088209000,26.1374,152.92,152.84,3.9243]
[1642088209198,13.71,152.92,152.83,14.81767586]
[1642088209900,7.71,152.92,152.83,15.07767586]
[1642088210099,7.71,152.92,152.83,15.32767586]
[1642088210501,2.616,152.94,152.83,15.32767586]
[1642088210699,72.4425,152.95,152.83,15.32767586]
[1642088210900,21.60142716,152.94,152.83,15.32767586]
[1642088211102,29.31142716,152.94,152.84,13.0777]
[1642088211502,31.92742716,152.94,152.84,13.0777]
[1642088211700,10.326,152.94,152.84,13.0777]
[1642088212403,10.576,152.94,152.87,3.9238]
[1642088212603,16.97670593,152.93,152.87,3.9238]
[1642088212805,7.71,152.92,152.81,2.616]
[1642088213006,7.71,152.92,152.77,9.9976]
[1642088213007,2.616,152.91,152.77,9.9976]
[1642088213207,7.71,152.9,152.77,9.9976]
[1642088213806,26.44666958,152.9,152.78,20.3614165]
[1642088214008,26.44666958,152.9,152.79,2.617]
[1642088214205,7.71,152.9,152.79,2.617]
[1642088214607,7.71,152.9,152.81,13.0803]
[1642088214807,7.71,152.9,152.79,8.877]
[1642088215007,7.71,152.9,152.8,63.64]
[1642088215208,7.71,152.9,152.81,16.10144631]
[1642088215407,7.71,152.93,152.81,16.10144631]
[1642088215607,7.71,152.93,152.81,16.61144631]
[1642088215807,7.71,152.93,152.82,63.64]
[1642088216007,7.71,152.93,152.82,63.9]
[1642088216607,7.71,152.93,152.82,64.15]
[1642088217212,7.71,152.93,152.88,3.9235]
[1642088217611,7.71,152.93,152.88,4.1835]
[1642088218411,7.71,152.93,152.89,16.10144631]
[1642088218610,2.93547834,152.95,152.89,16.10144631]
[1642088218813,2.93547834,152.95,152.89,16.36144631]
[1642088219415,6.64754803,152.96,152.89,16.36144631]
[1642088220115,6.64754803,152.96,152.93,3.9222]
[1642088220313,6.06439994,152.95,152.93,3.9222]
[1642088220516,6.06439994,152.95,152.89,0.26]
[1642088220815,13.77439994,152.95,152.85,63.64]
[1642088221014,2.616,152.94,152.85,63.64]
[1642088221419,23.20709756,152.93,152.85,63.64]
[1642088221614,23.20709756,152.93,152.83,2.615]
[1642088221815,33.01769756,152.93,152.86,3.9241]
[1642088222014,40.72769756,152.93,152.86,3.9241]
[1642088222215,3.71800865,152.92,152.86,3.9241]
[1642088222415,11.42800865,152.92,152.83,2.615]
[1642088222817,21.23920865,152.92,152.85,3.9243]
[1642088223016,23.85520865,152.92,152.85,3.9243]
[1642088223216,23.85520865,152.92,152.83,2.615]
[1642088223217,24.10520865,152.92,152.83,2.615]
[1642088223430,6.65348699,152.91,152.77,9.9976]
[1642088223623,30.97719699,152.9,152.77,9.9976]
[1642088223824,30.97719699,152.9,152.77,12.6146]
[1642088224026,37.22719699,152.9,152.77,12.6146]
[1642088224324,2.93547834,152.89,152.81,2.9439]
[1642088224523,10.326,152.88,152.8,17.46995174]
[1642088224722,7.71,152.88,152.8,17.46995174]
[1642088225246,7.71,152.88,152.85,2.9433]
[1642088225446,6.06439994,152.87,152.8,27.53115174]
[1642088225646,6.06439994,152.87,152.8,9.8112]
[1642088226448,6.06439994,152.87,152.83,2.9435]
[1642088226651,8.99987828,152.87,152.83,66.5835]
[1642088226847,2.93547834,152.87,152.83,66.8435]
[1642088227449,2.93547834,152.87,152.83,3.2035]
[1642088227650,2.93547834,152.9,152.83,3.2035]
[1642088227850,2.93547834,152.9,152.89,2.9425]
[1642088228050,8.99987828,152.9,152.89,2.9425]
[1642088228451,2.93547834,152.9,152.89,3.2025]
[1642088228651,3.73102467,152.91,152.89,2.9425]
[1642088229358,3.73102467,152.91,152.87,9.8074]
[1642088229359,43.0,152.9,152.87,2.9428]
[1642088229556,50.71,152.9,152.79,2.616]
[1642088229957,50.71,152.9,152.84,9.8088]
[1642088230151,50.71,152.9,152.8,18.54817623]
[1642088230555,50.71,152.9,152.86,2.9431]
[1642088230751,50.71,152.9,152.79,0.07]
[1642088231150,50.71,152.9,152.8,9.8113]
[1642088231351,50.96,152.9,152.8,9.8113]
[1642088231553,3.73102467,152.89,152.85,2.9431]
[1642088231954,3.98102467,152.89,152.85,2.9431]
[1642088232151,3.48102467,152.89,152.85,2.9431]
[1642088232651,3.48102467,152.89,152.85,1e-08]
[1642088233353,3.23102467,152.89,152.86,2.9429]
[1642088233552,3.23102467,152.89,152.85,1e-08]
[1642088234953,2.73102467,152.89,152.85,1e-08]
[1642088235153,2.73102467,152.89,152.87,2.9428]
[1642088235353,5.76322464,152.89,152.87,2.9428]
[1642088235554,2.73102467,152.89,152.87,0.26]
[1642088235960,2.73102467,152.89,152.85,1e-08]
[1642088236755,5.29139592,152.92,152.88,2.9426]
[1642088236956,5.29139592,152.92,152.88,3.2026]
[1642088237757,4.79139592,152.92,152.88,3.2026]
[1642088237958,4.79139592,152.94,152.85,1e-08]
[1642088238158,8.01861883,152.93,152.85,1e-08]
[1642088238361,2.616,152.92,152.85,1e-08]
[1642088238558,7.71,152.91,152.85,1e-08]
[1642088239358,7.96,152.91,152.85,1e-08]
[1642088239559,1.86841021,152.87,152.86,2.9427]
[1642088239762,1.86841021,152.87,152.85,1e-08]
[1642088240361,7.93281015,152.87,152.85,1e-08]
[1642088240760,13.77439994,152.87,152.85,2.94290001]
[1642088240962,13.77439994,152.87,152.85,0.00010001]
[1642088241159,7.71,152.87,152.85,0.00010001]
[1642088241561,3.03219997,152.86,152.85,0.00010001]
[1642088241760,7.71,152.87,152.85,2.94300001]
[1642088242958,10.74219997,152.87,152.85,2.94300001]
[1642088243362,7.71,152.87,152.85,2.94300001]
[1642088244461,7.71,152.87,152.85,3.20300001]
[1642088244662,3.73882286,152.88,152.87,2.9424]
[1642088245064,9.8032228,152.88,152.87,3.2024]
[1642088245263,3.73882286,152.88,152.87,3.2024]
[1642088245664,3.73882286,152.88,152.87,46.2024]
[1642088245965,9.42,152.93,152.9,2.9414]
[1642088246965,9.42,152.93,152.9,3.2014]
[1642088247371,7.47755773,152.95,152.93,2.9412]
[1642088247567,9.42,152.99,152.93,3.2012]
[1642088247768,9.42,152.99,152.93,0.26]
[1642088248266,9.42,152.99,152.87,8.875]
[1642088248467,11.06999521,152.99,152.9,2.9416]
[1642088248667,2.615,152.98,152.87,0.25]
[1642088248966,11.035,152.99,152.86,69.64]
[1642088249170,11.035,152.99,152.87,17.71989527]
[1642088249370,11.035,152.99,152.92,2.9413]
[1642088249569,1.86550358,152.96,152.88,2.615]
[1642088249975,1.86550358,152.96,152.88,9.125]
[1642088250371,1.86550358,152.96,152.88,2.875]
[1642088250570,1.86550358,152.95,152.88,2.875]
[1642088250771,1.86550358,152.95,152.88,0.26]
[1642088250977,1.86550358,152.95,152.87,2.875]
[1642088251570,1.86550358,152.94,152.89,2.9418]
[1642088251771,1.86550358,152.94,152.87,2.875]
[1642088252376,1.86550358,152.94,152.87,8.875]
[1642088252574,1.86550358,152.94,152.92,2.9413]
[1642088252976,1.86550358,152.94,152.92,9.4513]
[1642088253178,0.32838815,153.0,152.93,63.64]
[1642088253374,0.32838815,153.0,152.94,21.40772471]
[1642088253574,0.32838815,153.0,152.95,63.64]
[1642088253775,0.32838815,153.0,152.95,66.5806]
[1642088253977,0.32838815,153.0,152.96,2.614]
[1642088254176,0.32838815,153.0,152.97,15.0551381]
[1642088254577,12.034,153.07,152.99,52.0]
[1642088254776,2.613,153.08,153.0,63.64]
[1642088254976,137.0206,153.12,153.0,72.763]
[1642088255178,134.4076,153.12,153.0,72.763]
[1642088255376,133.4076,153.12,153.0,72.763]
[1642088255577,133.4076,153.12,153.01,22.78831772]
[1642088255777,133.4076,153.12,153.03,2.939]
[1642088255977,88.6377,153.12,153.04,13.67454509]
[1642088256177,86.0247,153.12,153.03,0.51]
[1642088256376,12.033,153.12,153.03,0.51]
[1642088256581,12.033,153.19,153.03,0.51]
[1642088256776,12.033,153.19,153.04,2.9389]
[1642088256978,12.033,153.19,153.05,2.612]
[1642088257185,9.42,153.19,153.05,2.612]
[1642088257381,9.42,153.22,153.06,31.55377368]
[1642088257581,2.611,153.21,153.07,66.251]
[1642088257784,2.611,153.21,153.07,78.6087]
[1642088257980,2.611,153.21,153.07,85.1187]
[1642088258180,2.611,153.21,153.08,1.44185022]
[1642088258382,2.611,153.24,153.09,12.031]
[1642088258607,20.47788703,153.23,153.1,14.32908913]
[1642088258816,2.611,153.24,153.11,2.611]
[1642088259016,2.611,153.25,153.11,21.4778]
[1642088259215,0.46075615,153.26,153.11,19.98285022]
[1642088259416,0.46075615,153.26,153.11,49.46415421]
[1642088259616,0.46075615,153.26,153.12,1.44185022]
[1642088259817,0.46075615,153.26,153.14,63.64]
[1642088260015,2.61,153.25,153.14,15.93]
[1642088260218,20.9065495,153.26,153.14,15.93]
[1642088260418,0.46075615,153.26,153.15,2.61]
[1642088260817,0.46075615,153.26,153.15,9.12]
[1642088261117,0.46075615,153.26,153.15,11.8057]
[1642088261319,17.58485933,153.25,153.15,11.8057]
[1642088261518,17.83485933,153.25,153.15,11.8057]
[1642088261716,17.58485933,153.25,153.16,16.94339275]
[1642088261917,2.61,153.24,153.15,18.6569]
[1642088262117,17.58485933,153.25,153.16,6.26]
[1642088262353,17.58485933,153.25,153.15,18.6569]
[1642088262718,12.03,153.24,153.15,2.61]
[1642088262921,12.03,153.24,153.08,9.42]
[1642088262922,9.7954,153.17,153.08,20.63652849]
[1642088263120,21.05910389,153.22,153.08,20.63652849]
[1642088263320,2.611,153.21,153.08,20.63652849]
[1642088263520,2.861,153.21,153.08,23.24752849]
[1642088263719,2.861,153.21,153.09,9.42]
[1642088264121,2.861,153.21,153.11,17.78453432]
[1642088264320,2.611,153.21,153.11,17.78453432]
[1642088264522,2.611,153.27,153.12,10.441]
[1642088264921,6.0,153.27,153.13,74.39847404]
[1642088265121,2.611,153.29,153.14,10.44]
[1642088265324,2.611,153.29,153.16,63.64]
[1642088265526,2.61,153.3,153.18,17.82240773]
[1642088265722,21.96459035,153.29,153.19,2.61]
[1642088265923,21.96459035,153.29,153.18,18.33240773]
[1642088266128,2.61,153.31,153.19,64.15]
[1642088266324,2.61,153.32,153.19,64.15]
[1642088266525,2.61,153.32,153.21,63.64]
[1642088266725,2.609,153.34,153.21,63.64]
[1642088266927,2.609,153.36,153.21,70.15]
[1642088267126,2.609,153.36,153.23,63.64]
[1642088267526,2.609,153.36,153.23,84.02879626]
[1642088268231,2.609,153.36,153.23,72.1061]
[1642088268432,19.20641351,153.37,153.23,85.00115871]
[1642088268727,25.20641351,153.37,153.25,17.82240773]
[1642088269128,25.20641351,153.37,153.26,66.249]
[1642088269330,75.1487,153.39,153.26,72.249]
[1642088269530,0.46075615,153.4,153.26,80.589]
[1642088269955,2.608,153.39,153.26,82.0448]
[1642088270154,2.608,153.39,153.26,79.9358]
[1642088270358,17.77919711,153.38,153.26,81.37765022]
[1642088270555,17.77919711,153.38,153.27,2.608]
[1642088270758,23.77919711,153.38,153.26,8.08]
[1642088270956,23.77919711,153.38,153.27,2.608]
[1642088271156,23.77919711,153.38,153.3,1.9557]
[1642088271457,17.77919711,153.38,153.3,2.2057]
[1642088271856,3.06875615,153.4,153.3,15.65551971]
[1642088272057,4.25799521,153.43,153.3,65.8457]
[1642088272259,2.608,153.45,153.32,63.64]
[1642088272459,2.607,153.48,153.33,10.437]
[1642088272658,10.437,153.48,153.33,7.83]
[1642088272858,10.437,153.48,153.33,8.08]
[1642088273059,21.07924248,153.47,153.33,0.25]
[1642088273262,10.437,153.46,153.33,0.25]
[1642088273461,16.437,153.46,153.33,2.2053]
[1642088273959,16.437,153.46,153.33,8.2053]
[1642088274360,16.437,153.46,153.33,4.8123]
[1642088274561,16.437,153.46,153.33,5.0723]
[1642088274961,16.437,153.46,153.33,11.0723]
[1642088275161,16.437,153.46,153.33,5.0723]
[1642088275362,16.687,153.46,153.33,2.4653]
[1642088275562,16.437,153.46,153.33,2.4653]
[1642088275864,16.437,153.46,153.33,8.4653]
[1642088276065,10.437,153.46,153.33,8.4653]
[1642088276263,21.07924248,153.47,153.33,8.2153]
[1642088276462,21.07924248,153.47,153.33,7.9553]
[1642088276664,21.07924248,153.47,153.35,17.18243032]
[1642088277062,21.07924248,153.47,153.35,23.18243032]
[1642088277262,21.07924248,153.47,153.35,31.01243032]
[1642088277462,27.07924248,153.47,153.35,31.01243032]
[1642088277663,27.07924248,153.47,153.36,1.9547]
[1642088278063,27.07924248,153.47,153.36,71.8547]
[1642088278865,2.68662902,153.49,153.36,79.6847]
[1642088279065,0.07962902,153.49,153.37,2.607]
[1642088279265,0.07962902,153.49,153.38,7.83]
[1642088279563,0.07962902,153.49,153.39,2.606]
[1642088279764,0.07962902,153.49,153.4,18.1496536]
[1642088279965,0.07962902,153.49,153.41,2.606]
[1642088280364,0.07962902,153.49,153.41,9.116]
[1642088280566,20.42010305,153.49,153.41,9.116]
[1642088280767,0.07962902,153.49,153.42,1.9539]
[1642088281867,17.55552733,153.49,153.42,1.9539]
[1642088282269,23.55552733,153.49,153.42,1.9539]
[1642088282669,26.16152733,153.49,153.42,1.9539]
[1642088283069,26.41152733,153.49,153.42,1.9539]
[1642088283672,26.41152733,153.49,153.36,2.606]
[1642088283871,26.41152733,153.49,153.35,7.83]
[1642088284271,26.41152733,153.49,153.36,6.5165]
[1642088284774,34.24152733,153.49,153.3,2.607]
[1642088284973,77.09999521,153.48,153.27,2.607]
[1642088285174,10.437,153.47,153.26,17.4954]
[1642088285373,78.0143,153.46,153.27,32.76032509]
[1642088285573,78.0143,153.46,153.28,10.438]
[1642088285574,10.438,153.45,153.28,10.438]
[1642088286076,16.688,153.45,153.3,1.9555]
[1642088286275,9.7783,153.44,153.3,1.9555]
[1642088286476,22.85439548,153.43,153.3,7.9555]
[1642088286674,28.85439548,153.43,153.3,1.9555]
[1642088286873,29.10439548,153.43,153.3,1.9555]
[1642088287374,9.7797,153.41,153.3,1.9555]
[1642088287574,2.608,153.4,153.3,2.2055]
[1642088287978,16.688,153.4,153.3,1.9555]
[1642088288178,0.30858209,153.39,153.22,475.35486128]
[1642088288376,9.7849,153.33,153.22,475.35486128]
[1642088288678,10.439,153.32,153.22,475.35486128]
[1642088288876,10.439,153.32,153.23,19.29322797]
[1642088289077,16.439,153.32,153.23,1.9569]
[1642088289276,13.83,153.32,153.22,475.35486128]
[1642088289478,14.08,153.32,153.22,475.35486128]
[1642088289677,2.609,153.31,153.22,475.35486128]
[1642088289880,7.83,153.32,153.22,475.35486128]
[1642088290078,7.83,153.32,153.22,477.31186128]
[1642088290279,124.3499,153.37,153.23,2.609]
[1642088290480,7.83,153.36,153.21,6.0]
[1642088290677,7.83,153.36,153.22,2.609]
[1642088290878,7.83,153.36,153.2,7.83]
[1642088290879,13.83,153.36,153.21,2.609]
[1642088291083,18.71267736,153.35,153.23,65.5965]
[1642088291284,26.54267736,153.35,153.24,2.609]
[1642088291479,42.32617736,153.35,153.24,2.869]
[1642088291682,2.609,153.34,153.24,2.609]
[1642088291978,7.83,153.33,153.24,2.609]
[1642088292183,7.83,153.33,153.16,7.83]
[1642088292184,94.0,153.31,153.16,7.83]
[1642088292379,0.32107266,153.28,153.09,9.7562]
[1642088292580,23.30356591,153.22,153.16,445.18980649]
[1642088292779,7.83,153.21,153.16,445.18980649]
[1642088292979,2.611,153.2,153.06,10.21052461]
[1642088293181,7.83,153.19,153.06,1.959]
[1642088293480,13.83,153.19,153.06,7.959]
[1642088293680,13.83,153.19,153.06,1.959]
[1642088293881,7.83,153.19,153.06,6.0]
[1642088294079,2.612,153.26,153.06,6.0]
[1642088294379,7.83,153.25,153.08,1.9582]
[1642088294579,14.08,153.25,153.08,7.9582]
[1642088295080,36.42437892,153.25,153.09,19.44251727]
[1642088295280,2.611,153.24,153.11,1.9581]
[1642088295579,7.83,153.23,153.12,20.83120895]
[1642088295981,20.78701159,153.22,153.12,20.83120895]
[1642088296188,28.61701159,153.22,153.12,20.83120895]
[1642088296383,7.83,153.22,153.12,21.08120895]
[1642088296582,7.83,153.22,153.12,23.03910895]
[1642088296780,7.83,153.22,153.12,29.03910895]
[1642088296990,2.611,153.29,153.14,63.64]
[1642088297183,23.949,153.38,153.14,63.64]
[1642088297184,84.1839,153.34,153.15,7.83]